bitfinex/quotes_ETHUSD_20241123
["timestamp","ask_amount","ask_price","bid_price","bid_amount"]
[1732356425372,0.44172655,3348.1,3347.0,0.7856]
[1732356425580,0.55,3348.0,3347.0,0.7856]
[1732356425757,0.74559556,3348.0,3347.1,0.02987121]
[1732356426369,0.7856,3348.1,3347.1,0.02987121]
[1732356426570,0.7837,3348.5,3347.2,0.7856]
[1732356426774,0.7856,3348.5,3347.4,0.7856]
[1732356427085,0.7837,3349.0,3347.6,0.7856]
[1732356427264,0.51486532,3348.5,3347.8,0.7856]
[1732356427591,0.7856,3348.7,3347.8,0.7856]
[1732356427749,0.7837,3349.0,3347.9,0.02986436]
[1732356427944,0.55,3348.9,3347.8,0.7856]
[1732356428286,0.7837,3348.7,3347.8,0.7856]
[1732356428446,0.4425457,3348.6,3347.8,0.7856]
[1732356428646,0.41268133,3348.6,3347.8,0.7856]
[1732356428846,0.81356437,3348.7,3347.8,0.7856]
[1732356429778,0.55,3348.6,3347.8,0.7856]
[1732356430085,0.5188927,3348.5,3347.8,0.7856]
[1732356430788,0.02986437,3348.4,3347.8,0.7856]
[1732356431270,0.7837,3348.3,3347.5,0.7856]
[1732356431605,0.20748894,3348.2,3347.9,0.03400799]
[1732356431897,0.55,3348.1,3347.2,0.7856]
[1732356432062,0.63494629,3348.0,3347.2,0.7856]
[1732356432262,0.55,3347.9,3347.2,0.7856]
[1732356432461,0.7837,3347.8,3347.2,0.7856]
[1732356432662,0.7837,3347.8,3346.2,0.2977]
[1732356432957,1.00744256,3347.8,3346.7,0.2977]
[1732356433178,1.00744256,3347.8,3346.8,0.02987248]
[1732356433379,0.19701239,3347.7,3346.8,0.02987248]
[1732356433893,0.19701239,3347.7,3346.7,0.32757248]
[1732356434093,0.02986437,3347.6,3346.7,0.2977]
[1732356434382,0.60158981,3347.6,3346.7,0.2977]
[1732356434959,0.7544,3347.4,3346.7,0.2977]
[1732356435148,0.57986437,3347.3,3346.7,0.2977]
[1732356435455,0.41268133,3347.2,3346.3,0.7764]
[1732356435656,0.02986437,3347.1,3346.3,0.7764]
[1732356435855,0.02986437,3347.1,3346.0,0.7764]
[1732356435856,0.7544,3347.0,3346.0,0.7764]
[1732356436058,0.55,3346.8,3346.0,1.0741]
[1732356437886,0.55,3346.8,3346.0,0.7764]
[1732356438089,0.55,3346.8,3346.1,0.03359599]
[1732356442089,0.55,3346.8,3346.1,0.06347905]
[1732356442297,1.16708133,3347.0,3346.1,0.06347905]
[1732356442298,0.7544,3347.0,3346.1,0.06347905]
[1732356442496,0.51749836,3347.1,3346.2,0.7891]
[1732356442668,1.16798133,3347.4,3346.4,0.7891]
[1732356442669,0.7553,3347.4,3346.4,0.7891]
[1732356442871,0.7553,3347.4,3346.5,0.02987559]
[1732356443073,0.41268133,3347.8,3346.6,0.7891]
[1732356443074,0.4961846,3347.5,3346.6,0.7891]
[1732356443304,1.16798133,3347.8,3346.7,0.02987275]
[1732356443513,1.16798133,3347.8,3346.7,0.06317351]
[1732356443690,0.02986437,3347.7,3346.7,0.03330076]
[1732356443867,0.58271129,3347.6,3346.6,0.7891]
[1732356444226,0.7553,3347.5,3345.4,0.7891]
[1732356444431,0.7553,3347.3,3345.5,0.81898088]
[1732356444642,0.41268133,3347.2,3345.5,0.85290724]
[1732356444931,0.55,3347.1,3345.5,0.85290724]
[1732356445134,0.17179813,3347.0,3345.5,0.85290724]
[1732356446332,0.55,3346.9,3345.5,0.85290724]
[1732356446535,0.55,3346.9,3345.5,0.81898088]
[1732356448148,0.55,3346.9,3345.8,0.2977]
[1732356448355,0.57986437,3346.9,3345.8,0.32758037]
[1732356449314,0.55,3346.9,3345.8,0.32758037]
[1732356449612,0.55,3346.9,3346.0,0.2977]
[1732356449815,0.55,3346.9,3346.0,0.32758038]
[1732356450442,1.06892591,3346.9,3346.1,1.1022]
[1732356450626,1.06892591,3346.9,3346.2,0.02988036]
[1732356451206,0.17179813,3347.0,3346.3,0.8045]
[1732356451416,0.2977,3346.8,3346.3,0.8045]
[1732356451741,0.2977,3346.8,3346.4,0.02957348]
[1732356452041,0.83966437,3346.7,3346.4,0.02957348]
[1732356452343,0.55,3346.6,3346.1,0.2977]
[1732356452499,0.16873644,3346.5,3346.1,0.2977]
[1732356453017,0.16873644,3346.5,3346.2,0.03050767]
[1732356453402,0.16873644,3346.5,3346.0,0.8045]
[1732356453917,0.16873644,3346.5,3346.1,0.03056352]
[1732356454427,0.20264624,3346.4,3346.1,0.03056352]
[1732356454630,0.20264624,3346.4,3346.0,0.8045]
[1732356458161,0.497926,3346.7,3346.0,0.8045]
[1732356458445,0.2977,3346.8,3346.1,0.03060624]
[1732356458653,0.80766241,3346.8,3346.1,0.06048565]
[1732356458944,0.2977,3346.8,3346.1,0.02987941]
[1732356459746,0.2977,3346.8,3346.2,0.8033]
[1732356459947,0.2977,3346.8,3346.2,0.83385039]
[1732356460453,0.80660062,3346.8,3346.2,0.83385039]
[1732356460604,0.80660062,3346.8,3346.2,35.83385039]
[1732356460605,0.2977,3346.8,3346.2,35.83385039]
[1732356462970,0.91713254,3347.0,3346.2,35.83385039]
[1732356463174,1.83426554,3347.0,3346.2,35.83385039]
[1732356463379,0.91713254,3347.0,3346.3,0.02987794]
[1732356463563,0.50445121,3347.0,3346.3,0.02987794]
[1732356463877,1.20008133,3347.3,3346.4,0.03043869]
[1732356464190,0.86371537,3347.2,3346.4,0.03043869]
[1732356464341,0.16511154,3347.1,3346.4,0.03043869]
[1732356464543,0.4425457,3347.0,3346.2,0.8033]
[1732356464858,0.55,3346.9,3346.3,35.0]
[1732356465175,0.55,3346.9,3346.4,0.02907131]
[1732356465586,0.57986437,3346.9,3346.4,0.02907131]
[1732356465749,0.55,3346.9,3346.4,0.02907131]
[1732356465949,0.55,3346.7,3346.4,0.02907131]
[1732356466275,0.21140894,3346.6,3346.4,0.02907131]
[1732356466470,0.18154457,3346.6,3346.4,0.02907131]
[1732356467138,0.55,3347.0,3346.4,0.02907131]
[1732356468050,0.55,3347.0,3346.1,0.8181]
[1732356468253,0.55,3347.0,3346.2,35.0]
[1732356468764,3.98801154,3347.1,3346.3,0.05769878]
[1732356468970,1.24653233,3347.2,3346.3,0.05769878]
[1732356469141,1.76249619,3347.2,3346.3,0.05769878]
[1732356469346,4.76249619,3347.2,3346.4,35.8181]
[1732356469549,4.76249619,3347.2,3346.5,0.05968213]
[1732356469769,5.32103581,3347.2,3346.5,0.05968213]
[1732356470145,4.90835448,3347.2,3346.5,0.05968213]
[1732356470809,0.55,3347.1,3346.5,0.05968213]
[1732356472161,0.55,3347.1,3346.5,0.02980412]
[1732356472903,1.23558133,3347.0,3346.5,0.02980412]
[1732356473084,0.55,3346.8,3346.5,0.02980412]
[1732356473285,0.55,3346.8,3346.5,35.02980412]
[1732356473493,0.55,3347.1,3346.6,0.8181]
[1732356473783,1.34981486,3347.2,3346.6,0.84797804]
[1732356474105,0.8229,3348.0,3346.6,0.84797804]
[1732356474106,0.8229,3348.0,3346.6,0.8181]
[1732356474396,0.8229,3348.0,3346.8,0.8181]
[1732356474600,0.8181,3347.9,3346.8,0.8181]
[1732356475269,0.8181,3347.9,3347.0,0.8181]
[1732356475468,0.8181,3347.9,3347.1,2.99141464]
[1732356475687,0.8181,3347.9,3347.0,0.8181]
[1732356476106,0.8181,3347.9,3347.1,35.0]
[1732356476597,0.8181,3347.9,3347.2,0.8181]
[1732356476758,0.50699436,3348.0,3347.2,0.84797079]
[1732356477103,0.8229,3348.0,3347.2,0.84797079]
[1732356477399,0.8229,3348.8,3347.4,0.8181]
[1732356477602,0.8229,3349.1,3347.6,0.8181]
[1732356477757,0.8229,3349.1,3345.6,0.80343029]
[1732356477758,0.8229,3348.6,3347.7,0.84796386]
[1732356478084,0.51469839,3349.1,3347.7,35.02986386]
[1732356478285,0.8229,3349.3,3347.8,0.8181]
[1732356478459,0.8229,3349.3,3347.9,0.8479607]
[1732356478659,1.18798133,3349.3,3347.9,0.8479607]
[1732356478861,1.18798133,3349.3,3348.1,0.8181]
[1732356479102,1.18798133,3349.3,3348.2,0.02986035]
[1732356479283,1.18798133,3349.3,3348.3,0.8181]
[1732356479862,1.18798133,3349.3,3346.3,0.55]
[1732356480059,0.8229,3349.3,3346.3,0.55]
[1732356480296,0.55,3349.2,3346.3,0.87253895]
[1732356480490,0.55,3349.2,3346.5,0.55]
[1732356480702,0.8229,3349.1,3346.5,0.55]
[1732356480888,0.8229,3349.1,3346.7,0.55]
[1732356481065,0.8229,3349.1,3346.8,1.67475923]
[1732356481757,0.8229,3349.1,3347.0,0.55]
[1732356482214,0.8229,3349.6,3347.0,1.04362325]
[1732356482368,0.8229,3350.1,3347.2,0.55]
[1732356482704,0.8229,3350.1,3347.4,0.55]
[1732356482995,0.8229,3350.1,3347.7,0.55]
[1732356483200,0.8229,3350.1,3347.8,0.7621]
[1732356483400,8.9,3347.8,3347.0,1.89718541]
[1732356483606,1.3182416,3350.1,3347.1,35.21693387]
[1732356483607,8.9,3350.0,3347.1,35.21693387]
[1732356484901,4.19005,3349.9,3347.1,0.21693387]
[1732356485100,5.21187416,3349.9,3347.2,0.21141193]
[1732356485265,5.21187416,3349.9,3347.5,35.0]
[1732356485479,5.21187416,3349.9,3347.6,0.55]
[1732356485684,8.9,3349.8,3347.6,0.55]
[1732356486627,8.9,3349.8,3347.9,0.7668]
[1732356486832,8.9,3350.0,3347.8,0.55]
[1732356486986,8.9,3350.0,3348.0,0.55]
[1732356487185,8.9,3350.0,3348.1,0.7668]
[1732356487503,8.9,3350.0,3348.5,0.7668]
[1732356488008,9.79,3350.0,3347.2,0.2977]
[1732356488194,21.81844435,3345.0,3344.9,3.4237]
[1732356488529,8.9,3349.8,3345.9,3.4237]
[1732356488735,0.7508,3349.6,3346.1,0.2977]
[1732356489026,0.55,3349.5,3346.1,0.2977]
[1732356489592,0.55,3349.5,3347.4,35.0]
[1732356489899,3.0,3349.3,3347.4,35.0]
[1732356491288,3.0,3349.3,3347.5,0.55]
[1732356491484,40.81048991,3345.0,3344.9,8.31034388]
[1732356491785,23.67322213,3345.0,3344.9,11.64807187]
[1732356492026,23.25709127,3345.0,3344.9,47.83815587]
[1732356492238,12.85185179,3345.0,3344.9,46.8552647]
[1732356492399,8.9,3346.9,3345.0,0.21172799]
[1732356492588,8.9,3346.8,3345.9,3.4237]
[1732356492927,8.9,3346.7,3346.0,0.01495159]
[1732356493146,8.9,3346.7,3346.0,0.31265159]
[1732356493147,8.6022,3346.7,3346.0,0.31265159]
[1732356493314,0.55,3348.5,3346.0,0.31265159]
[1732356493517,0.55,3348.3,3346.0,0.31265159]
[1732356493713,8.6022,3348.4,3346.0,3.43865159]
[1732356493922,0.55,3348.3,3346.0,0.31265159]
[1732356494129,0.55,3348.1,3346.1,0.2977]
[1732356494339,0.55,3348.1,3346.2,0.01493994]
[1732356494538,0.95705795,3348.2,3346.2,0.01493994]
[1732356494752,0.55,3348.2,3346.2,0.01493994]
[1732356495040,3.0,3348.0,3346.2,0.01493994]
[1732356495901,3.41837947,3348.0,3346.2,0.01493994]
[1732356496636,3.0,3348.0,3346.2,0.01493994]
[1732356497619,3.0,3348.0,3346.3,0.2977]
[1732356497827,3.0,3348.0,3346.5,0.2977]
[1732356498029,8.6022,3347.9,3346.7,0.2977]
[1732356498260,8.6022,3347.8,3346.9,0.2977]
[1732356498556,8.6022,3347.8,3347.0,0.01493163]
[1732356500249,3.0,3347.7,3347.0,0.01493163]
[1732356500659,3.0,3347.7,3347.1,0.2977]
[1732356500820,3.0,3347.7,3347.2,0.01493294]
[1732356501827,3.0,3347.7,3346.3,0.01493172]
[1732356502359,3.0,3347.7,3346.4,0.2977]
[1732356502545,3.0,3347.5,3346.5,0.01493184]
[1732356502730,3.0,3347.5,3346.6,0.2977]
[1732356502933,3.0,3347.5,3346.8,0.2977]
[1732356503136,2.7022,3347.5,3346.9,0.01493413]
[1732356503351,2.7022,3347.5,3347.0,0.2977]
[1732356503518,2.7022,3347.5,3347.1,0.0149342]
[1732356504466,8.6022,3347.6,3346.5,3.4237]
[1732356504616,5.69838593,3349.0,3347.2,0.8477]
[1732356504958,5.69838593,3348.9,3347.2,0.8477]
[1732356506628,3.0,3348.8,3347.6,0.2977]
[1732356506967,3.0,3348.8,3347.8,0.2977]
[1732356508167,3.0,3348.8,3347.3,0.2977]
[1732356508660,5.69838593,3348.7,3347.3,0.2977]
[1732356509870,5.69838593,3348.7,3347.5,0.2977]
[1732356510718,5.69838593,3348.7,3347.3,0.2977]
[1732356511353,5.69838593,3348.7,3347.3,3.2977]
[1732356511574,5.69838593,3348.6,3347.5,0.2977]
[1732356511858,5.69838593,3348.6,3347.7,0.2977]
[1732356512027,5.69838593,3348.6,3347.9,0.2977]
[1732356512225,5.69838593,3348.5,3347.9,0.2977]
[1732356512467,5.69838593,3348.5,3347.5,3.0]
[1732356512468,5.69838593,3348.5,3348.1,0.2977]
[1732356512677,5.69838593,3348.5,3348.3,0.2977]
[1732356513468,5.69838593,3348.5,3348.4,0.8477]
[1732356517929,5.40058593,3348.5,3348.4,0.8477]
[1732356520426,3.0,3350.1,3348.4,0.8477]
[1732356520665,3.0,3349.9,3348.4,0.8477]
[1732356521838,0.7605,3349.8,3348.4,0.8477]
[1732356522048,3.0,3349.9,3348.4,0.8477]
[1732356522671,5.40058593,3350.0,3348.4,0.8477]
[1732356525191,5.94064452,3350.0,3348.4,0.8477]
[1732356525480,0.7866,3349.9,3348.4,0.8477]
[1732356526691,5.40058593,3349.8,3348.4,0.8477]
[1732356527807,5.40058593,3349.8,3348.6,0.8477]
[1732356528298,5.40058593,3349.8,3348.8,0.8477]
[1732356528674,6.01930452,3349.8,3348.8,0.2977]
[1732356529495,0.7866,3349.6,3348.8,0.2977]
[1732356530475,8.40058593,3349.7,3348.8,0.2977]
[1732356532101,5.40058593,3349.7,3348.8,0.2977]
[1732356532469,5.40058593,3349.6,3348.4,0.7975]
[1732356532801,5.40058593,3349.6,3348.9,1.0952]
[1732356533496,5.40058593,3349.6,3349.1,0.2977]
[1732356533703,5.40058593,3349.5,3349.1,0.2977]
[1732356534201,5.40058593,3349.5,3349.2,0.7975]
[1732356534363,5.40058593,3349.5,3349.3,0.2977]
[1732356537587,6.18718593,3349.5,3349.0,0.2977]
[1732356538748,5.40058593,3349.4,3349.0,0.2977]
[1732356538943,5.40058593,3349.4,3348.6,0.2977]
[1732356539439,5.40058593,3349.4,3348.8,0.2977]
[1732356540231,5.40058593,3349.4,3348.6,0.2977]
[1732356541512,0.7866,3349.5,3348.6,0.2977]
[1732356541513,5.40058593,3349.3,3348.6,0.2977]
[1732356544639,5.40058593,3349.2,3348.6,0.2977]
[1732356547582,5.40058593,3349.1,3348.6,0.2977]
[1732356548259,3.0,3349.0,3348.6,0.2977]
[1732356548881,5.40058593,3349.1,3348.6,0.2977]
[1732356549083,5.40058593,3349.1,3348.8,0.2977]
[1732356549296,5.40058593,3349.1,3349.0,0.2977]
[1732356550871,5.40058593,3349.1,3349.0,0.8477]
[1732356551268,5.40058593,3349.1,3349.0,1.7116]
[1732356553071,4.85208891,3349.1,3349.0,1.7116]
[1732356553275,1.0747,3350.5,3349.0,1.7116]
[1732356553276,2.67243958,3350.4,3349.8,1.1616]
[1732356553593,2.67243958,3350.3,3349.8,1.1616]
[1732356554402,2.67243958,3350.2,3349.9,1.7116]
[1732356555357,2.67243958,3350.2,3350.0,0.8639]
[1732356555559,2.67243958,3350.2,3350.1,0.55]
[1732356556206,2.67243958,3351.0,3350.5,0.2977]
[1732356556402,2.67243958,3350.9,3350.6,0.8477]
[1732356556698,2.67243958,3350.9,3350.7,0.8639]
[1732356557295,2.67243958,3350.9,3350.6,1.1616]
[1732356557937,2.67243958,3350.9,3350.7,1.4139]
[1732356559600,2.67243958,3350.8,3350.7,1.4139]
[1732356560341,2.67243958,3351.7,3351.0,0.297]
[1732356560510,2.67243958,3351.6,3351.2,0.9149]
[1732356560928,2.67243958,3351.5,3351.3,0.55]
[1732356563353,2.67243958,3351.5,3350.8,0.9149]
[1732356563529,3.71483958,3351.5,3350.9,0.55]
[1732356565652,2.67243958,3351.4,3350.8,0.9149]
[1732356566352,2.67243958,3351.4,3350.6,3.0]
[1732356566553,2.67243958,3351.4,3349.9,0.62620845]
[1732356566554,2.67243958,3351.3,3350.4,0.9149]
[1732356566767,2.67243958,3351.3,3350.5,0.55]
[1732356568321,1.0424,3351.2,3350.5,0.55]
[1732356568763,1.0424,3351.2,3350.0,0.9149]
[1732356568963,2.67243958,3351.1,3350.0,0.9149]
[1732356569117,1.0424,3351.0,3349.3,0.9149]
[1732356569322,1.0424,3350.8,3349.3,0.9149]
[1732356569572,1.0424,3350.8,3348.9,0.9149]
[1732356569719,1.0424,3350.6,3348.9,0.9149]
[1732356570119,1.0424,3350.5,3348.9,0.9149]
[1732356570462,1.0424,3350.5,3348.5,0.9149]
[1732356570762,1.0424,3350.3,3348.5,0.9149]
[1732356571548,1.0424,3350.3,3348.7,0.1]
[1732356571978,1.0424,3350.3,3348.9,3.0]
[1732356572263,1.0424,3350.3,3349.0,0.55]
[1732356572421,1.0424,3350.3,3348.8,0.55]
[1732356572620,1.0424,3350.3,3349.0,0.55]
[1732356573261,1.0424,3350.1,3349.0,0.55]
[1732356573471,1.0424,3350.1,3348.6,0.55]
[1732356574568,0.71933669,3350.1,3348.6,0.55]
[1732356577431,0.71933669,3350.1,3348.8,0.55]
[1732356577630,2.67243958,3350.0,3348.8,0.55]
[1732356578358,1.064,3349.9,3348.8,0.55]
[1732356578659,1.064,3349.9,3348.7,0.847]
[1732356580677,2.67243958,3349.8,3349.2,1.0304]
[1732356580833,2.67243958,3349.7,3349.3,0.55]
[1732356582484,3.73643958,3349.7,3349.3,0.55]
[1732356583068,3.73643958,3349.7,3349.5,0.55]
[1732356583287,3.73643958,3349.7,3349.3,0.55]
[1732356583504,3.73643958,3349.7,3349.1,0.297]
[1732356583795,3.73643958,3349.7,3349.6,35.55]
[1732356583993,2.67243958,3349.7,3349.6,35.55]
[1732356585680,3.77893958,3349.7,3349.6,35.55]
[1732356587408,2.67243958,3349.7,3349.6,35.55]
[1732356590406,3.77893958,3349.7,3349.6,35.0]
[1732356594523,3.77893958,3349.7,3348.9,0.55]
[1732356594887,3.77893958,3349.7,3349.1,3.55]
[1732356595308,3.77893958,3349.7,3348.9,0.55]
[1732356595632,2.67243958,3349.6,3348.5,1.4441]
[1732356595790,2.67243958,3349.5,3349.2,35.0]
[1732356595985,2.67243958,3349.4,3349.2,35.0]
[1732356596940,1.0718,3349.3,3349.2,35.0]
[1732356599702,1.0718,3349.3,3349.2,35.55]
[1732356600029,2.67243958,3349.4,3349.2,35.55]
[1732356601718,2.67243958,3349.3,3349.2,35.55]
[1732356603048,1.67243958,3349.3,3349.2,35.55]
[1732356604654,1.67243958,3349.3,3349.2,39.5969]
[1732356606619,1.67243958,3349.3,3349.2,39.8939]
[1732356607660,1.1302,3350.7,3349.4,1.3439]
[1732356607857,1.67243958,3350.6,3349.5,0.847]
[1732356608458,1.67243958,3350.5,3349.5,0.847]
[1732356608658,1.67243958,3350.5,3349.8,1.5969]
[1732356609244,1.67243958,3350.4,3349.8,1.5969]
[1732356609602,1.67243958,3350.4,3349.5,0.297]
[1732356609603,1.67243958,3350.4,3350.0,3.55]
[1732356609814,1.67243958,3350.4,3350.2,0.55]
[1732356610109,1.67243958,3350.3,3350.2,0.55]
[1732356610293,1.67243958,3350.9,3350.2,3.55]
[1732356610498,1.67243958,3350.9,3350.3,35.0]
[1732356610679,1.67243958,3350.9,3350.4,3.55]
[1732356610881,1.67243958,3350.9,3350.6,0.55]
[1732356611081,0.66355041,3352.6,3350.6,0.55]
[1732356611082,1.67243958,3350.8,3350.6,0.55]
[1732356611301,1.67243958,3350.8,3350.7,35.55]
[1732356616307,1.67243958,3350.8,3350.7,35.847]
[1732356620190,1.67243958,3350.8,3350.7,38.847]
[1732356620726,1.67243958,3351.5,3350.8,3.847]
[1732356620892,1.67243958,3351.4,3350.8,3.847]
[1732356622320,1.67243958,3351.4,3351.0,0.55]
[1732356622504,1.67243958,3351.3,3351.2,0.847]
[1732356623193,1.37543958,3351.3,3351.2,0.847]
[1732356624136,1.37543958,3351.3,3351.2,35.847]
[1732356625891,1.37543958,3351.8,3351.3,0.847]
[1732356626382,1.1145,3351.7,3351.2,35.0]
[1732356627786,1.1145,3351.7,3351.3,0.55]
[1732356628690,1.37543958,3351.6,3351.3,0.55]
[1732356630557,1.37543958,3351.6,3350.9,0.55]
[1732356630989,1.37543958,3351.6,3351.4,35.0]
[1732356631669,2.48993958,3351.5,3351.4,35.0]
[1732356632301,1.1145,3351.4,3350.4,0.297]
[1732356632681,1.1145,3351.4,3351.0,35.0]
[1732356633116,1.1145,3351.4,3351.1,0.04503973]
[1732356633312,1.1145,3351.4,3351.1,0.34203973]
[1732356634779,1.37543958,3351.3,3351.2,0.297]
[1732356634985,1.37543958,3351.3,3351.2,1.9348]
[1732356635222,1.37543958,3351.3,3351.2,1.97980653]
[1732356635729,1.37543958,3351.9,3351.2,1.97980653]
[1732356635911,1.37543958,3351.9,3351.4,0.297]
[1732356636298,1.37543958,3351.9,3351.7,0.297]
[1732356636519,1.37543958,3351.8,3351.7,0.297]
[1732356636696,1.37543958,3351.8,3351.7,35.847]
[1732356639891,1.37543958,3351.8,3351.7,0.847]
[1732356640334,1.37543958,3351.8,3351.7,35.847]
[1732356642932,2.48213958,3351.8,3351.7,35.297]
[1732356643138,2.48213958,3351.8,3351.7,35.0]
[1732356643692,1.1067,3351.8,3350.6,1.1102]
[1732356644231,1.1067,3351.8,3350.7,0.297]
[1732356644393,1.1067,3351.8,3350.9,0.297]
[1732356644593,1.1067,3351.8,3351.3,0.297]
[1732356644811,8.9,3351.7,3351.5,0.297]
[1732356645659,8.9,3351.7,3351.6,35.297]
[1732356646016,8.9,3351.7,3351.6,35.34165721]
[1732356648251,8.9,3351.7,3351.6,0.34165721]
[1732356648568,8.9,3351.7,3351.6,0.297]
[1732356649236,8.9,3351.7,3351.6,0.34167397]
[1732356649582,8.9,3351.7,3351.6,35.297]
[1732356649935,8.9,3351.7,3351.6,35.34167397]
[1732356652455,10.0067,3351.7,3351.6,0.04467397]
[1732356652680,1.1067,3351.5,3350.9,0.297]
[1732356652880,1.1067,3351.5,3350.8,0.55]
[1732356652881,1.1067,3351.5,3351.1,0.297]
[1732356653491,4.1067,3351.3,3348.8,1.1102]
[1732356653638,0.1,3350.9,3347.9,1.1102]
[1732356653838,0.1,3350.9,3345.6,13.675519]
[1732356653839,0.1,3350.1,3347.0,1.1102]
[1732356654078,0.1,3349.6,3347.0,1.1102]
[1732356654285,0.1,3349.3,3348.0,35.0]
[1732356654487,3.0,3349.1,3348.1,0.297]
[1732356654651,0.1,3349.8,3347.0,1.1102]
[1732356654652,1.1067,3348.9,3348.2,0.297]
[1732356655777,1.1067,3348.9,3347.1,0.297]
[1732356655959,8.85532603,3348.8,3347.1,0.297]
[1732356656163,8.85532603,3348.8,3347.3,0.297]
[1732356656363,9.85152863,3348.8,3347.5,0.297]
[1732356656675,8.85532603,3348.7,3347.5,0.297]
[1732356656881,1.1228289,3348.6,3347.5,0.297]
[1732356657384,1.1228289,3348.6,3347.6,0.01493857]
[1732356657691,0.99781549,3348.5,3346.9,0.01493725]
[1732356658058,1.0855,3348.3,3346.9,0.01493725]
[1732356658590,1.12283385,3348.3,3346.9,0.01493725]
[1732356658810,1.0855,3348.3,3346.9,0.01493725]
[1732356659147,8.89265993,3348.2,3346.8,0.01494308]
[1732356659346,8.89265993,3348.2,3346.2,1.0439]
[1732356659347,1.0855,3347.9,3346.3,0.01495047]
[1732356659562,0.03734046,3347.8,3346.3,0.01495047]
[1732356659810,1.0855,3347.9,3346.3,0.01495047]
[1732356660455,8.85532603,3347.8,3346.5,1.0439]
[1732356660655,8.85532603,3347.8,3346.7,0.55]
[1732356660877,8.85532603,3347.8,3346.9,0.55]
[1732356661061,8.85532603,3347.8,3347.1,0.55]
[1732356661245,8.85532603,3347.8,3347.3,0.55]
[1732356661444,8.85532603,3347.8,3347.4,0.01494262]
[1732356661646,8.85532603,3347.8,3347.3,0.55]
[1732356662291,1.12283538,3347.7,3346.2,0.6203329]
[1732356662473,8.85532603,3347.2,3346.6,0.01494604]
[1732356662679,8.85532603,3347.1,3346.6,0.01494604]
[1732356662893,8.85532603,3347.1,3346.1,0.01496272]
[1732356664052,8.85532603,3347.1,3346.2,0.57849922]
[1732356664251,8.85532603,3347.1,3346.3,0.56496156]
[1732356664661,8.85532603,3347.1,3346.4,0.0283856]
[1732356664892,9.90222603,3347.0,3346.4,0.01496226]
[1732356665046,9.90222603,3347.0,3344.7,0.1]
[1732356665047,9.90222603,3347.0,3345.9,3.0]
[1732356665249,8.85532603,3346.9,3346.0,0.04357968]
[1732356665450,8.85532603,3346.9,3346.0,0.01496683]
[1732356666265,8.85532603,3346.9,3346.1,0.04346598]
[1732356666465,8.85532603,3346.9,3346.2,0.55]
[1732356666654,8.85532603,3346.9,3346.3,0.04335239]
[1732356666853,8.85532603,3346.9,3346.4,0.55]
[1732356667289,8.85532603,3346.9,3346.5,0.0282715]
[1732356667589,8.85532603,3346.9,3346.6,0.56496736]
[1732356667787,8.85532603,3346.8,3346.6,0.56496736]
[1732356667990,8.85532603,3346.8,3346.7,0.5781579]
[1732356668305,8.85532603,3347.3,3346.7,0.5781579]
[1732356668591,8.85532603,3347.2,3346.9,1.0969]
[1732356668798,8.85532603,3347.2,3347.0,0.01495122]
[1732356668956,8.85532603,3347.2,3347.0,0.56495122]
[1732356669156,8.85532603,3347.2,3347.1,0.57798304]
[1732356669940,8.85532603,3347.2,3347.0,0.01495122]
[1732356670146,8.85532603,3347.2,3347.1,0.02796268]
[1732356670364,8.85532603,3347.2,3347.1,0.55]
[1732356670643,8.85532603,3347.2,3347.1,0.57796268]
[1732356670644,8.78063703,3347.2,3347.1,0.57796268]
[1732356671920,8.78063703,3347.2,3347.1,0.55]
[1732356672228,8.78063703,3347.2,3347.0,3.56495122]
[1732356672430,8.78063703,3347.2,3347.0,0.56495122]
[1732356673047,8.48363703,3347.2,3347.1,0.297]
[1732356673340,8.48363703,3348.0,3347.3,0.297]
[1732356673548,3.1,3349.5,3347.1,0.55]
[1732356673549,8.48363703,3347.9,3347.5,0.297]
[1732356673774,8.48363703,3347.9,3347.8,0.847]
[1732356675527,9.62823703,3347.9,3347.8,0.847]
[1732356675723,9.62823703,3347.9,3347.3,0.01494141]
[1732356675922,10.59106073,3347.9,3346.6,0.01494173]
[1732356676175,8.48363703,3347.8,3346.6,0.01494173]
[1732356676961,8.48363703,3347.8,3346.7,0.01494907]
[1732356677406,8.48363703,3347.8,3346.8,0.297]
[1732356677547,8.48363703,3347.8,3347.0,0.297]
[1732356677746,8.48363703,3347.8,3347.2,0.297]
[1732356677948,8.48363703,3347.8,3347.4,0.297]
[1732356678946,8.48363703,3347.8,3346.9,0.01494789]
[1732356679278,8.48363703,3347.8,3347.0,0.297]
[1732356679636,8.48363703,3347.8,3347.1,0.01494972]
[1732356679963,8.48363703,3347.7,3347.2,0.297]
[1732356680160,1.1446,3347.6,3347.4,0.297]
[1732356680473,1.1446,3347.6,3346.8,0.297]
[1732356680634,1.1446,3347.6,3346.6,0.01494972]
[1732356680635,1.1446,3347.6,3347.0,0.297]
[1732356681252,1.1446,3347.6,3347.2,0.297]
[1732356682268,1.1446,3347.6,3346.8,0.297]
[1732356682469,2.1074237,3347.6,3347.0,0.297]
[1732356682773,1.1471,3347.4,3346.1,0.31195637]
[1732356683665,1.1471,3347.4,3346.1,0.01495637]
[1732356683865,1.1471,3347.4,3346.2,0.01496409]
[1732356684398,1.1471,3347.3,3346.4,0.297]
[1732356684768,1.1471,3347.3,3346.5,0.55]
[1732356685095,1.1471,3347.3,3346.4,0.3119643]
[1732356685096,1.1471,3347.3,3346.4,0.297]
[1732356685296,1.36774561,3347.3,3346.4,0.297]
[1732356685594,1.36774561,3347.3,3346.5,0.01497036]
[1732356685955,1.36774561,3347.3,3346.1,0.01497037]
[1732356686156,1.1471,3347.3,3346.4,0.297]
[1732356686351,1.1471,3347.3,3346.5,0.86197037]
[1732356686591,1.1471,3347.3,3346.6,0.55]